bitfinex/quotes_ETHUSD_20220311
["timestamp","ask_amount","ask_price","bid_price","bid_amount"]
[1646979308086,2.25041689,2566.8,2566.6,1.0]
[1646979308487,2.2479153,2566.8,2566.6,1.0]
[1646979308687,2.25041689,2566.8,2566.6,1.0]
[1646979309088,2.25041689,2566.8,2566.7,2.65006995]
[1646979309289,2.25041689,2566.8,2566.7,5.3001399]
[1646979309586,2.2479153,2566.8,2566.7,5.3001399]
[1646979311946,2.40649814,2566.8,2566.7,5.3001399]
[1646979313448,2.40649814,2566.8,2566.6,1.4557799]
[1646979313449,3.38056814,2566.8,2566.6,1.4557799]
[1646979313687,3.38056814,2566.8,2566.6,0.4557799]
[1646979314091,8.40649814,2566.8,2566.1,2.2476]
[1646979314687,0.00248373,2566.6,2566.1,2.2476]
[1646979315091,0.97656373,2566.6,2566.1,2.2476]
[1646979315287,0.3,2566.5,2566.1,1.0]
[1646979316289,0.50391818,2566.5,2566.1,1.0]
[1646979316489,3.5,2566.4,2566.3,1.0]
[1646979316693,0.50391818,2566.5,2566.3,1.0]
[1646979317743,0.3,2566.4,2566.3,1.0]
[1646979317940,2.43908656,2566.7,2566.3,1.0]
[1646979318141,0.3,2566.5,2566.3,1.0]
[1646979318342,0.00386809,2566.6,2566.3,1.0]
[1646979318742,0.00386809,2566.6,2566.5,1.0]
[1646979319347,2.2480899,2566.7,2566.5,1.0]
[1646979319541,2.25195807,2566.7,2566.5,1.0]
[1646979320543,1.27404,2566.7,2566.5,1.0]
[1646979320742,1.27773586,2566.7,2566.5,1.0]
[1646979321582,1.27404,2566.7,2566.5,1.0]
[1646979321987,0.05721589,2566.6,2566.5,1.0]
[1646979323890,1.27773589,2566.7,2566.5,1.0]
[1646979324087,1.27404,2566.7,2566.5,1.0]
[1646979324289,1.27774745,2566.7,2566.5,1.0]
[1646979324493,0.05577045,2566.6,2566.5,1.0]
[1646979327341,3.55577045,2566.6,2566.5,1.0]
[1646979328984,0.05577045,2566.6,2566.5,1.0]
[1646979334543,1.27753286,2566.7,2566.5,1.0]
[1646979335044,1.2726942,2566.7,2566.5,1.0]
[1646979335443,1.27619299,2566.7,2566.5,1.0]
[1646979336090,6.76463065,2567.0,2566.5,1.0]
[1646979336285,0.00349879,2566.7,2566.5,1.0]
[1646979337291,1.947874,2566.8,2566.5,1.0]
[1646979337487,0.00349089,2566.7,2566.3,0.82496614]
[1646979337687,0.00349089,2566.7,2566.6,1.0]
[1646979338488,0.3,2566.9,2566.6,1.0]
[1646979338688,2.247874,2566.9,2566.6,1.0]
[1646979338888,0.00348929,2566.8,2566.6,1.0]
[1646979339688,3.221834,2566.9,2566.6,1.0]
[1646979339936,3.221834,2566.9,2566.3,0.82496614]
[1646979339937,0.00348927,2566.8,2566.3,0.82496614]
[1646979340133,0.00348927,2566.8,2566.7,1.0]
[1646979340938,3.221834,2566.9,2566.7,1.0]
[1646979341139,3.22532503,2566.9,2566.7,1.0]
[1646979342040,3.221834,2566.9,2566.7,1.0]
[1646979342543,3.22532538,2566.9,2566.7,1.0]
[1646979343341,3.221834,2566.9,2566.7,1.0]
[1646979343595,3.22532538,2566.9,2566.7,1.0]
[1646979344583,3.221834,2566.9,2566.7,1.0]
[1646979344788,3.22532498,2566.9,2566.7,1.0]
[1646979345790,3.221834,2566.9,2566.7,1.0]
[1646979345989,3.22532489,2566.9,2566.7,1.0]
[1646979346191,2.25136489,2566.9,2566.7,1.0]
[1646979346390,2.25136489,2566.9,2566.8,0.07990382]
[1646979346591,1.95136489,2566.9,2566.8,0.07990382]
[1646979346989,3.8957516,2567.1,2566.8,0.07990382]
[1646979347449,0.00349087,2567.0,2566.8,0.07990382]
[1646979347852,0.30349087,2567.0,2566.8,0.07990382]
[1646979348047,0.3,2567.0,2566.8,0.07990382]
[1646979348452,0.30349094,2567.0,2566.5,0.27764478]
[1646979348649,0.30349094,2567.0,2566.9,0.0865214]
[1646979349249,0.3,2567.0,2566.9,0.0865214]
[1646979349650,0.3,2567.0,2566.9,1.0865214]
[1646979350051,0.00349094,2567.1,2566.9,1.0865214]
[1646979350555,3.5,2567.5,2566.9,1.0865214]
[1646979350753,0.00349092,2567.1,2566.9,1.0865214]
[1646979351697,0.9738,2567.2,2566.9,1.0865214]
[1646979351899,0.0034909,2567.1,2566.9,1.0865214]
[1646979352897,0.97374,2567.5,2566.9,1.0865214]
[1646979353103,0.00349089,2567.1,2566.9,1.0865214]
[1646979353902,0.00349089,2567.1,2567.0,0.07862749]
[1646979354099,1.1367,2567.6,2567.0,0.07862749]
[1646979354298,0.00349089,2567.1,2567.0,0.07862749]
[1646979355340,1.01817035,2567.9,2567.0,0.27332749]
[1646979355341,0.04460035,2567.9,2567.0,0.27332749]
[1646979355539,0.04460035,2567.9,2567.5,0.8819515]
[1646979355743,0.04460035,2567.9,2567.1,0.08745402]
[1646979355942,0.04460035,2567.9,2567.3,1.0]
[1646979356139,1.1281,2568.1,2567.4,0.08927841]
[1646979356739,0.00250496,2567.9,2567.4,0.08927841]
[1646979357741,1.1281,2568.1,2567.4,0.08927841]
[1646979357940,0.00250496,2567.8,2567.4,0.08927841]
[1646979358140,0.00137311,2567.8,2567.4,0.08927841]
[1646979358792,0.97355,2568.0,2567.4,0.08927841]
[1646979359590,1.1281,2568.1,2567.4,0.08927841]
[1646979359992,0.05064148,2567.9,2567.3,1.0]
[1646979360391,0.05329709,2567.9,2567.3,1.0]
[1646979360691,1.02693709,2567.9,2567.3,1.0]
[1646979360897,0.05258933,2567.8,2567.3,1.0]
[1646979361294,0.35258933,2567.8,2567.3,1.0]
[1646979361494,1.6595628,2567.7,2567.3,1.0]
[1646979361699,0.05116034,2567.6,2567.3,1.0]
[1646979361894,0.97383,2567.5,2567.3,1.0]
[1646979362742,0.97770081,2567.5,2567.3,1.0]
[1646979363741,0.97383,2567.5,2567.3,1.0]
[1646979363942,0.97756973,2567.5,2567.3,1.0]
[1646979364944,0.97383,2567.5,2567.3,1.0]
[1646979365348,0.97756973,2567.5,2567.3,1.0]
[1646979366186,0.97383,2567.5,2567.3,1.0]
[1646979366386,0.97756973,2567.5,2567.3,1.0]
[1646979367286,0.04256978,2567.6,2567.3,1.0]
[1646979367685,0.00359554,2567.5,2567.3,1.0]
[1646979368585,0.04256978,2567.6,2567.3,1.0]
[1646979368789,0.00359554,2567.5,2567.3,1.0]
[1646979369687,0.97366,2567.8,2567.3,1.0]
[1646979369929,0.00359554,2567.5,2567.3,1.0]
[1646979370533,0.00359554,2567.5,2567.4,0.08706915]
[1646979371035,1.1281,2568.1,2567.4,0.08706915]
[1646979371240,0.0034819,2567.6,2567.5,1.0]
[1646979372339,0.00348186,2567.7,2567.5,1.0]
[1646979373338,0.97362,2567.9,2567.5,1.0]
[1646979373584,0.00348184,2567.7,2567.5,1.0]
[1646979374586,2.10168,2568.1,2567.5,1.0]
[1646979374791,0.00349571,2567.7,2567.5,1.0]
[1646979375892,0.97362,2568.0,2567.5,1.0]
[1646979376094,0.00349571,2567.7,2567.5,1.0]
[1646979376994,0.97362,2568.0,2567.6,0.07451486]
[1646979377439,0.00349571,2567.7,2567.6,0.07451486]
[1646979378339,4.89482,2568.2,2567.6,0.07451486]
[1646979378540,0.0034928,2567.8,2567.6,0.07451486]
[1646979379343,0.97355,2568.1,2567.5,1.0]
[1646979379544,0.00349278,2567.8,2567.5,1.0]
[1646979379942,0.00349278,2567.8,2567.6,1.0]
[1646979380143,0.00228426,2567.8,2567.6,1.0]
[1646979380545,0.97355,2568.1,2567.6,1.0]
[1646979380945,2.2224,2568.2,2567.7,0.08903969]
[1646979381204,1.2224,2568.2,2567.7,0.08903969]
[1646979382003,0.00349422,2568.1,2567.7,0.08903969]
[1646979383107,1.2224,2568.2,2567.7,0.08903969]
[1646979383307,0.00349424,2568.0,2567.7,0.08903969]
[1646979384106,1.2224,2568.2,2567.6,1.0]
[1646979384507,0.00349426,2568.0,2567.3,0.09031238]
[1646979385342,3.16953,2568.2,2567.3,0.09031238]
[1646979385541,0.00350105,2567.9,2567.3,0.09031238]
[1646979385742,0.00350105,2567.9,2567.6,1.0]
[1646979386545,3.16953,2568.2,2567.6,1.0]
[1646979386744,0.00350115,2567.9,2567.6,1.0]
[1646979387745,2.19595,2568.2,2567.6,1.0]
[1646979387946,0.00350115,2567.9,2567.6,1.0]
[1646979388993,2.19595,2568.2,2567.6,1.0]
[1646979389192,0.00349254,2567.9,2567.6,1.0]
[1646979390194,2.19595,2568.2,2567.6,1.0]
[1646979390393,0.00349254,2567.9,2567.6,1.0]
[1646979390798,0.00349254,2567.9,2567.7,3.5]
[1646979390995,0.00349254,2567.9,2567.8,0.08483411]
[1646979391397,1.0,2568.6,2567.8,1.23793411]
[1646979391595,1.0,2568.6,2568.1,0.97306]
[1646979391801,1.0,2568.6,2568.2,1.05360134]
[1646979392103,1.0,2568.6,2568.2,0.08055134]
[1646979392349,7.87306522,2568.9,2568.2,0.08055134]
[1646979392542,7.8591,2568.9,2568.2,0.08055134]
[1646979392944,0.00349292,2568.5,2568.2,0.08055134]
[1646979393744,7.8591,2568.9,2568.2,0.08055134]
[1646979393943,0.00349294,2568.5,2568.2,0.08055134]
[1646979395043,7.8591,2568.9,2568.2,0.08055134]
[1646979395244,0.00349294,2568.5,2568.2,0.08055134]
[1646979396096,7.87306943,2568.9,2568.2,0.08055134]
[1646979396293,7.8591,2568.9,2568.2,0.08055134]
[1646979396493,0.00349289,2568.5,2568.2,0.08055134]
[1646979397302,13.31968451,2568.9,2568.2,0.08055134]
[1646979397498,13.3057153,2568.9,2568.2,0.08055134]
[1646979397697,0.00349289,2568.5,2568.2,0.08055134]
[1646979398301,0.00349289,2568.5,2568.1,1.0]
[1646979398701,3.5,2568.7,2568.1,1.0]
[1646979398906,0.00349289,2568.5,2568.1,1.0]
[1646979399946,3.5,2568.5,2568.1,1.0]
[1646979400145,0.00349291,2568.4,2568.1,1.0]
[1646979400342,0.04487477,2568.4,2568.1,1.0]
[1646979401045,0.1945,2568.7,2567.9,3.57874105]
[1646979401248,0.00259559,2568.4,2567.9,0.07874105]
[1646979401647,0.00259559,2568.4,2567.8,1.2347]
[1646979402247,0.3,2568.7,2567.8,1.2347]
[1646979402248,0.04836374,2568.5,2567.8,1.2347]
[1646979403591,0.00349364,2568.3,2567.8,1.2347]
[1646979404690,0.04836374,2568.5,2567.8,1.2347]
[1646979404891,0.00349366,2568.2,2567.8,1.2347]
[1646979405902,0.04836374,2568.5,2567.8,1.2347]
[1646979406102,0.00349361,2568.2,2567.8,1.2347]
[1646979407101,1.60638874,2568.6,2567.8,1.2347]
[1646979407352,0.00349277,2568.2,2567.8,1.2347]
[1646979408151,0.24166277,2568.7,2567.8,1.2347]
[1646979408349,0.24166277,2568.7,2567.9,3.5]
[1646979408546,0.00349277,2568.2,2567.9,0.07725425]
[1646979409347,0.24166277,2568.7,2567.9,0.07725425]
[1646979409745,0.00349282,2568.2,2567.9,0.07725425]
[1646979410646,0.97337,2568.6,2567.9,0.07725425]
[1646979410844,0.00349291,2568.2,2567.9,0.07725425]
[1646979411891,0.97337,2568.6,2567.9,0.07725425]
[1646979412092,0.00349291,2568.2,2567.9,0.07725425]
[1646979413192,0.97337,2568.6,2567.9,0.07725425]
[1646979413397,0.00349291,2568.2,2567.9,0.07725425]
[1646979414217,0.97337,2568.6,2567.9,0.07725425]
[1646979414396,0.00349289,2568.2,2567.8,1.2347]
[1646979415445,0.97343,2568.5,2567.8,1.2347]
[1646979415643,0.00249994,2568.2,2567.8,1.2347]
[1646979416643,0.97343,2568.5,2567.8,1.2347]
[1646979416943,0.00249994,2568.2,2567.8,1.2347]
[1646979417844,0.97343,2568.5,2567.8,1.2347]
[1646979418048,0.00387061,2568.2,2567.8,1.2347]
[1646979419087,0.04624807,2568.4,2567.8,1.2347]
[1646979419285,0.00387061,2568.2,2567.8,1.2347]
[1646979420189,0.04624807,2568.4,2567.8,1.2347]
[1646979420388,0.00387061,2568.2,2567.8,1.2347]
[1646979421390,0.04624807,2568.4,2567.8,1.2347]
[1646979421690,0.00369944,2568.2,2567.8,1.2347]
[1646979422539,0.04624807,2568.4,2567.8,1.2347]
[1646979422940,0.00358332,2568.2,2567.8,1.2347]
[1646979423741,0.04624807,2568.4,2567.8,1.2347]
[1646979423941,0.04493427,2568.4,2567.8,1.2347]
[1646979424142,0.00358332,2568.2,2567.8,1.2347]
[1646979424943,0.04493427,2568.4,2567.8,1.2347]
[1646979425345,0.00359872,2568.2,2567.8,1.2347]
[1646979426190,0.04493427,2568.4,2567.8,1.2347]
[1646979426590,0.00347268,2568.2,2567.8,1.2347]
[1646979427396,0.04493427,2568.4,2567.8,1.2347]
[1646979427595,0.00347268,2568.2,2567.8,1.2347]
[1646979428598,0.04493427,2568.4,2567.8,1.2347]
[1646979428798,0.04487826,2568.6,2567.8,1.2347]
[1646979428999,0.00347588,2568.2,2567.8,1.2347]
[1646979429851,1.6063626,2568.5,2567.8,1.2347]
[1646979430037,0.00349844,2568.2,2567.8,1.2347]
[1646979430940,2.5797626,2568.5,2567.8,1.2347]
[1646979430941,1.6063626,2568.4,2567.8,1.2347]
[1646979431340,0.00349844,2568.2,2567.8,1.2347]
[1646979431542,1.59811488,2568.4,2567.8,1.2347]
[1646979436094,0.00381383,2568.3,2567.9,0.38928133]
[1646979436691,0.00381383,2568.3,2567.8,1.2347]
[1646979437090,1.59811488,2568.4,2567.8,1.2347]
[1646979437354,0.00389282,2568.3,2567.8,1.2347]
[1646979438145,0.9734,2568.5,2567.8,1.2347]
[1646979438545,0.00389276,2568.3,2567.8,1.2347]
[1646979439347,0.9734,2568.5,2567.8,1.2347]
[1646979439647,0.00389276,2568.3,2567.8,1.2347]
[1646979440450,0.00389276,2568.3,2567.9,3.5]
[1646979440650,1.01785028,2568.7,2567.8,1.2347]
[1646979441087,0.00379655,2568.3,2568.0,1.0]
[1646979441895,1.01785028,2568.7,2568.0,1.0]
[1646979442092,0.00379666,2568.3,2568.0,1.0]
[1646979443093,0.9733782,2568.5,2568.0,1.0]
[1646979443293,0.00379666,2568.3,2568.0,1.0]
[1646979444194,1.27338,2568.4,2568.0,1.0]
[1646979444698,0.97724831,2568.3,2568.2,1.0]
[1646979445157,1.27724831,2568.3,2568.2,1.0]
[1646979445358,1.27088261,2568.3,2568.2,1.0]
[1646979451598,0.97088261,2568.3,2568.2,1.0]
[1646979451799,0.05704374,2568.4,2568.2,1.0]
[1646979451800,0.00381572,2568.4,2568.2,1.0]
[1646979452000,0.00381572,2568.4,2568.2,1.08517278]
[1646979452195,0.00381572,2568.4,2568.3,0.08421008]
[1646979452644,1.2233,2568.9,2568.3,1.08421008]
[1646979452842,0.00381568,2568.5,2568.4,0.08962536]
[1646979453044,0.00279873,2568.5,2568.4,0.08962536]
[1646979453845,1.2233,2568.9,2568.4,0.08962536]
[1646979454045,1.2233,2568.9,2568.4,3.58962536]
[1646979454246,0.05125769,2569.2,2568.4,0.08962536]
[1646979454451,1.6060324,2569.1,2568.6,1.0]
[1646979454846,1.9060324,2569.1,2568.6,1.0]
[1646979455047,1.6060324,2569.0,2568.6,1.0]
[1646979455248,1.60984738,2569.0,2568.6,1.0]
[1646979456299,1.6060324,2569.0,2568.6,1.0]
[1646979456496,0.00354321,2568.9,2568.6,1.0]
[1646979456698,3.50354321,2568.9,2568.6,1.0]
[1646979456900,3.54923809,2568.9,2568.6,1.0]
[1646979457102,3.84923809,2568.9,2568.6,1.0]
[1646979457301,0.34923809,2568.9,2568.6,1.0]
[1646979457502,0.04569488,2568.9,2568.6,1.0]
[1646979457698,0.04923811,2568.9,2568.6,1.0]
[1646979458700,0.04569488,2568.9,2568.6,1.0]
[1646979458901,0.04923805,2568.9,2568.6,1.0]
[1646979459102,0.34923805,2568.9,2568.6,1.0]
[1646979459302,1.71462735,2569.5,2569.0,3.5]
[1646979459503,1.71462735,2569.5,2569.1,3.5887336]
[1646979459504,1.0,2569.5,2569.1,3.5887336]
[1646979459716,3.5,2570.3,2569.2,0.08120174]
[1646979459950,2.52392863,2570.3,2569.2,0.08120174]
[1646979460348,2.52392863,2570.3,2569.5,2.01058329]
[1646979460552,2.52392863,2570.3,2569.6,3.58743152]
[1646979460747,2.52392863,2570.3,2569.7,0.08655096]
[1646979460950,2.52392863,2570.3,2570.2,2.0]
[1646979461254,0.9727,2570.4,2570.3,0.08388414]
[1646979461955,0.85830399,2570.3,2570.2,0.74834759]
[1646979462152,5.61395846,2570.3,2569.3,0.25]
[1646979462460,0.04700609,2569.7,2569.0,0.07726354]
[1646979462652,0.23967174,2569.9,2569.0,0.07850253]
[1646979462854,0.24165966,2569.7,2569.0,0.00123899]
[1646979463056,0.70970065,2569.6,2569.0,0.00123899]
[1646979463254,0.04755974,2569.5,2569.0,0.00123899]
[1646979463455,0.04755974,2569.5,2568.5,0.08132108]
[1646979463707,0.04755974,2569.5,2568.6,0.04]
[1646979463907,0.00404264,2569.4,2569.0,0.00404334]
[1646979464807,0.9730449,2569.5,2568.6,0.04]
[1646979465011,0.00404253,2569.4,2569.0,0.00404323]
[1646979465808,0.00404253,2569.4,2568.6,0.04]
[1646979466009,5.3867969,2569.6,2568.6,0.04]
[1646979466209,0.00404253,2569.4,2569.0,0.00404323]
[1646979467108,0.9730558,2569.5,2568.6,0.04]
[1646979467337,0.00382867,2569.4,2569.0,0.00341698]
[1646979468340,0.97309,2569.5,2568.6,0.04]
[1646979468540,0.97309,2569.5,2569.0,0.00341698]
[1646979468541,0.81407195,2569.2,2569.0,0.00341698]
[1646979468740,0.9730984,2569.3,2569.0,0.00341698]
[1646979468940,0.3,2569.2,2569.0,0.00341698]
[1646979469542,0.50983318,2569.1,2568.6,0.04]
[1646979469743,0.04646772,2569.0,2568.6,0.04]
[1646979469943,1.48175772,2569.0,2568.6,0.04]
[1646979470148,0.3,2568.9,2568.6,0.04]
[1646979470345,1.29676365,2568.9,2568.6,0.04]
[1646979470546,0.04761705,2568.7,2568.3,1.1107]
[1646979470945,0.97332,2568.6,2568.3,1.1107]
[1646979471206,1.27332,2568.6,2568.3,1.1107]
[1646979471404,1.27332,2568.6,2567.9,0.04]
[1646979472109,1.27332,2568.6,2568.1,0.00336227]
[1646979472911,0.38403407,2568.5,2568.1,0.00336227]
[1646979473111,0.38403407,2568.5,2567.9,0.04]
[1646979473510,1.43556,2568.4,2568.2,0.00336214]
[1646979473712,1.73556,2568.4,2568.2,0.00336214]
[1646979474417,1.73556,2568.4,2567.9,0.04]
[1646979474611,1.73556,2568.4,2568.2,0.00337478]
[1646979475244,0.762,2568.4,2568.2,0.00337478]
[1646979475439,0.762,2568.4,2567.9,0.04]
[1646979475846,0.762,2568.4,2568.2,0.00337478]
[1646979476244,0.3,2568.4,2568.2,0.00337478]
[1646979476445,0.3,2568.5,2568.2,0.00337478]
[1646979476643,0.3,2568.5,2567.9,0.04]
[1646979476846,1.27342,2568.5,2567.9,0.04]
[1646979477245,1.27342,2568.5,2568.2,0.00337478]
[1646979477849,1.27342,2568.5,2567.9,0.04]
[1646979478247,1.27342,2568.5,2568.2,0.00337188]
[1646979480296,1.27342,2568.5,2567.9,0.04]
[1646979480297,0.3,2568.5,2567.9,0.04]
[1646979480697,0.3,2568.5,2568.2,0.00337188]
[1646979481498,0.3,2568.5,2567.9,0.04]
[1646979481697,0.3,2568.5,2568.2,0.00337252]
[1646979481900,2.870657,2568.6,2568.2,0.00337252]
[1646979482347,0.97334,2569.0,2568.2,0.00337252]
[1646979482348,0.97316,2569.2,2568.2,0.00337252]
[1646979482552,2.96564311,2569.4,2568.2,0.07521243]
[1646979482750,2.96564311,2569.4,2568.1,0.04]
[1646979482751,1.65558612,2569.3,2568.1,0.04]
[1646979482949,1.37750436,2569.2,2568.1,0.04]
[1646979483155,0.20986803,2568.8,2568.6,0.00337206]
[1646979483350,1.18327963,2568.8,2568.6,0.00337206]
[1646979483751,1.48327963,2568.8,2568.6,0.00337206]
[1646979483951,1.48327963,2568.8,2568.1,0.04]
[1646979484252,1.48327963,2568.8,2568.6,0.00337206]
[1646979484451,0.97347,2568.7,2568.6,0.00337206]
[1646979484652,1.27347,2568.7,2568.6,0.00337206]
[1646979485051,1.27347,2568.7,2568.1,0.04]
[1646979485252,0.97339,2568.6,2568.1,0.04]
[1646979485453,0.3,2568.7,2568.5,0.00337198]
[1646979485853,1.9468216,2568.8,2568.5,0.00337198]
[1646979486105,1.2734116,2568.8,2568.5,0.00337198]
[1646979486298,0.9734116,2568.8,2568.1,0.04]
[1646979486498,0.9734116,2568.8,2568.5,0.00337198]
[1646979486698,0.13819997,2569.2,2568.5,0.00337198]
[1646979487699,0.13819997,2569.2,2568.5,0.08799221]
[1646979487902,0.13819997,2569.2,2568.7,0.00337172]
[1646979488502,0.13819997,2569.2,2568.7,1.14767172]
[1646979488702,0.43819997,2569.2,2568.8,0.07861481]
[1646979488902,0.13819997,2569.2,2568.8,0.08198643]
[1646979489103,0.97657421,2569.4,2568.9,0.09028314]
[1646979489302,0.00347251,2569.4,2568.9,0.09028314]
[1646979490048,2.9190748,2569.6,2568.9,0.09028314]
[1646979490253,0.0034727,2569.4,2569.0,0.0033714]
[1646979491054,1.27307,2569.5,2568.9,0.09028314]
[1646979491055,2.24614,2569.5,2568.9,0.09028314]
[1646979491454,0.00349575,2569.4,2569.0,0.0033714]
[1646979492255,2.24614,2569.5,2568.9,0.09028314]
[1646979492454,2.2460853,2569.5,2568.9,0.09028314]
[1646979492657,0.00349575,2569.4,2569.0,0.0033714]
[1646979492858,0.00349575,2569.4,2569.1,1.11113805]
[1646979493255,0.00349575,2569.4,2569.2,0.07033148]
[1646979493458,0.00349575,2569.4,2569.0,0.0033714]
[1646979493721,0.00349575,2569.4,2568.9,0.12858165]
[1646979493722,1.2428,2569.9,2568.9,0.12858165]
[1646979494022,0.00349579,2569.4,2569.0,0.0033714]
[1646979494222,0.00349579,2569.4,2569.1,0.97978787]
[1646979494425,0.00349579,2569.4,2569.2,0.07371049]
[1646979494825,4.0857223,2570.0,2569.2,0.07371049]
[1646979494826,3.1129423,2570.0,2569.2,0.07371049]
[1646979495026,3.1129423,2570.0,2569.0,0.0033714]
[1646979495027,0.00349424,2569.4,2569.0,0.0033714]
[1646979496030,0.35302228,2569.9,2568.9,0.12593299]
[1646979496226,0.35302228,2569.9,2569.0,0.06880239]
[1646979496428,0.00349419,2569.4,2569.0,0.07217379]
[1646979496627,0.05401648,2569.7,2569.0,0.0033714]
[1646979496628,0.462,2569.6,2569.0,0.0033714]
[1646979496830,0.3,2569.5,2569.0,0.0033714]
[1646979497229,0.35401648,2569.7,2568.9,0.11279284]
[1646979497452,2.9191351,2569.6,2568.9,0.11279284]
[1646979497952,0.3,2569.5,2569.0,0.04]
[1646979498352,0.3,2569.6,2569.0,0.04]
[1646979498655,0.00248562,2569.5,2569.0,0.04]
[1646979498852,0.00248562,2569.5,2569.0,0.11147688]
[1646979499453,0.3,2569.6,2569.0,0.11147688]
[1646979499855,0.00372435,2569.5,2569.1,0.00372494]
[1646979500857,0.3,2569.6,2569.0,0.11147688]
[1646979501108,0.0037244,2569.5,2569.1,0.00372496]
[1646979501996,0.0037244,2569.5,2569.0,0.11147688]
[1646979501997,0.3,2569.6,2569.0,0.11147688]
[1646979502198,0.00371403,2569.5,2569.1,0.0037146]
[1646979502400,0.00371403,2569.5,2569.4,1.04]
[1646979503002,0.04522063,2569.5,2569.4,0.04]
[1646979503200,0.04522063,2569.5,2568.8,1.145]
[1646979503201,0.2360066,2569.5,2568.8,1.145]
[1646979503404,2.4086121,2569.4,2569.1,0.00371474]
[1646979503601,1.94658,2569.3,2569.1,0.00371474]
[1646979503805,2.40858,2569.3,2569.1,0.00371474]
[1646979504405,2.40858,2569.3,2568.7,0.04]
[1646979504406,1.62979,2569.3,2568.7,0.04]
[1646979504601,0.97326,2569.2,2568.7,0.04]
[1646979504855,2.29169722,2569.2,2569.1,0.00358923]
[1646979505058,3.54624067,2569.2,2569.1,0.00358923]
[1646979505256,3.74074067,2569.2,2569.1,0.00358923]
[1646979505656,1.94682,2569.1,2568.7,0.04]
[1646979505857,1.94682,2569.1,2569.0,0.00358995]
[1646979506057,0.97345,2568.9,2568.7,0.04]
[1646979506361,2.70891,2568.9,2568.7,0.04]
[1646979506859,3.70891,2568.9,2568.3,0.08793858]
[1646979507459,3.70891,2568.9,2568.0,0.04]
[1646979507659,2.9203967,2568.8,2568.0,0.11532558]
[1646979507858,2.9203967,2568.8,2568.0,0.04]
[1646979508062,1.94694,2568.6,2568.0,0.04]
[1646979508264,2.24694,2568.6,2568.3,0.00099782]
[1646979509117,2.24694,2568.6,2568.0,0.04]
[1646979509518,2.24694,2568.6,2568.3,0.00331709]
[1646979509719,3.22041,2568.6,2568.3,0.00331709]
[1646979510421,3.22041,2568.6,2568.0,0.04]
[1646979510621,3.22041,2568.6,2568.3,0.00331709]
[1646979511621,3.22041,2568.6,2568.0,0.04]
[1646979511821,3.22041,2568.6,2568.3,0.00338445]
[1646979512853,3.22041,2568.6,2568.0,0.04]
[1646979513053,3.22041,2568.6,2568.3,0.00338445]
[1646979513755,0.97349,2568.4,2568.3,0.00338445]
[1646979513959,1.43549,2568.4,2567.6,0.32036624]
[1646979514257,1.43549,2568.4,2567.8,0.01354056]
[1646979514258,5.4473,2568.3,2567.8,0.01354056]
[1646979514455,0.762,2568.2,2567.8,0.01354056]
[1646979515254,2.70933,2568.2,2567.4,0.09016634]
[1646979515454,0.97366,2568.1,2567.9,0.00336988]
[1646979515857,0.3,2568.1,2567.9,0.00336988]
[1646979516095,3.6829889,2568.2,2567.9,0.00336988]
[1646979516296,7.1829889,2568.2,2567.9,0.00336988]
[1646979516500,7.1829889,2568.2,2567.4,0.13016634]
[1646979516697,7.1829889,2568.2,2567.9,0.00336988]
[1646979517101,0.97366,2568.1,2567.9,0.00336988]
[1646979517305,3.962,2568.0,2567.9,6.988e-05]
[1646979517505,4.19856366,2568.0,2567.4,0.04]
[1646979517701,0.04735348,2567.9,2567.4,0.04]
[1646979517904,0.6567,2567.8,2567.5,0.01348155]
[1646979518301,0.97381,2567.9,2567.5,0.01348155]
[1646979518501,0.3,2568.0,2567.5,0.01348155]
[1646979518901,1.273924,2568.1,2567.4,0.08675898]
[1646979519704,0.3,2568.1,2567.4,0.08675898]
[1646979520250,1.5109,2568.4,2567.4,0.08675898]
[1646979520649,1.5109,2568.4,2567.8,0.07834185]
[1646979520849,1.2734,2568.4,2567.8,0.07834185]
[1646979521458,0.9734,2568.4,2567.8,0.08238579]
[1646979521660,1.1633,2568.8,2567.8,0.08238579]
[1646979521857,2.13656,2568.8,2567.8,0.08238579]
[1646979522461,2.13656,2568.8,2568.1,0.8932915]
[1646979522758,6.41996,2568.8,2567.9,0.08407399]
[1646979522957,2.91996,2568.8,2567.9,0.08407399]
[1646979523799,6.41996,2568.8,2568.0,1.12832573]
[1646979523998,2.91996,2568.8,2568.1,0.0714673]
[1646979525303,7.554,2568.9,2568.1,0.0714673]
[1646979527006,8.52718,2568.9,2568.1,0.0714673]
[1646979528754,0.97318,2568.9,2568.1,0.0714673]
[1646979528960,0.00392092,2569.2,2568.4,0.3897]
[1646979529158,0.00392092,2569.2,2568.4,0.4619523]
[1646979529655,1.94618,2569.3,2568.4,0.4619523]
[1646979529855,1.94618,2569.3,2568.5,1.23020852]
[1646979530056,0.0037944,2569.2,2568.3,1.3825]
[1646979530256,0.0037944,2569.2,2568.0,5.5418]
[1646979530456,0.0037944,2569.2,2568.1,0.08240959]
[1646979530856,1.94618,2569.3,2568.1,0.08240959]
[1646979531110,5.44618,2569.3,2568.2,1.09429364]
[1646979531315,0.00379424,2569.2,2568.3,0.08523578]
[1646979532118,1.94618,2569.3,2568.3,0.08523578]
[1646979532313,0.00379435,2569.2,2568.3,0.08523578]
[1646979533313,5.44618,2569.3,2568.3,0.08523578]
[1646979533514,0.0038201,2569.2,2568.3,0.08523578]
[1646979533915,0.9770301,2569.2,2568.3,0.08523578]
[1646979534115,0.9770301,2569.2,2568.0,4.2418]
[1646979534116,1.3667301,2569.2,2568.1,0.07146681]
[1646979534715,1.36672999,2569.2,2568.1,0.07146681]
[1646979534959,1.36672999,2569.2,2568.1,1.19368214]
[1646979534960,0.97702999,2569.2,2568.1,1.19368214]
[1646979535158,0.00381999,2569.2,2568.2,0.09057158]
[1646979535758,5.49303376,2569.3,2568.2,0.09057158]
[1646979535958,0.00280679,2569.2,2568.2,0.09057158]
[1646979536757,2.38273376,2569.3,2568.2,0.09057158]
[1646979537159,0.003815,2569.2,2568.2,0.09057158]